Cogmind - Beta 13 @@@ ROGUE MODE // 2024.04.01 @ 15:53:47 Player: Cheese Result: Destroyed by H-55 Commando with Assault Rifle Performance ------------- Evolutions (2) 1000 Regions Visited (3) 600 Robots Destroyed (37) 185 Value Destroyed (845) 845 Prototype IDs (0) 0 Alien Tech Used (0) 0 Bonus (0) 0 TOTAL SCORE: 2630 Bonus ------- None Cogmind --------- Core Integrity 0/550 Matter 42/300 Energy 100/100 System Corruption 0% Temperature Cool (0) Movement Core (50) Location -8/Materials Parts ------- > --- POWER (1) -------- (None) > --- PROPULSION (3) --- (None) > --- UTILITY (5) ------ Signal Interpreter > --- WEAPON (2) ------- (None) > --- INVENTORY (5) ---- Light Ion Engine Improved Ion Engine Peak State ------------ > --- POWER ------------ Light Nuclear Core > --- PROPULSION ------- Aluminum Leg Aluminum Leg Improved Aluminum Leg > --- UTILITY ---------- Small Storage Unit Improved Sensor Array Signal Interpreter Hardened Light Armor Plating Hardened Medium Armor Plating > --- WEAPON ----------- Improved Light Cannon Mini Grenade Launcher > --- INVENTORY -------- Light Ion Engine Light Ion Engine Improved Ion Engine Light Nuclear Core Aluminum Leg Aluminum Leg Mini Grenade Launcher Datajack [Rating: 22] Favorites ----------- Power Light Ion Engine Engine Light Ion Engine Power Core Light Nuclear Core Propulsion Aluminum Leg Leg Aluminum Leg Utility Large Storage Unit Device Sensor Array Storage Large Storage Unit Processor Signal Interpreter Protection Hardened Light Armor Plating Weapon Mini Grenade Launcher Energy Cannon Heavy Particle Cannon Ballistic Gun Assault Rifle Ballistic Cannon Improved Light Cannon Launcher Mini Grenade Launcher Special Melee Weapon Datajack Build | -11 -10 -9 -8 ------- Run | Yrd Mat Mat Mat Slots Evolved 4 | . . 2 2 Power . | . . . . Propulsion 1 | . . 1 . Utility 3 | . . 1 2 Weapon . | . . . . Parts Attached 44 | 4 15 9 16 Power 7 | 1 1 1 4 Engine 4 | 1 1 1 1 Core 3 | . . . 3 Reactor . | . . . . Propulsion 16 | 2 6 4 4 Treads . | . . . . Leg 16 | 2 6 4 4 Wheel . | . . . . Hover . | . . . . Flight . | . . . . Utility 9 | . 2 3 4 Device 3 | . . 2 1 Storage 2 | . 1 1 . Processor 1 | . 1 . . Hackware . | . . . . Protection 3 | . . . 3 Artifact . | . . . . Weapon 12 | 1 6 1 4 Energy Gun . | . . . . Energy Cannon 1 | . . . 1 Ballistic Gun 4 | 1 3 . . Ballistic Cannon 1 | . . 1 . Launcher 4 | . 2 . 2 Special Weapon . | . . . . Impact Weapon . | . . . . Slashing Weapon . | . . . . Piercing Weapon . | . . . . Special Melee Weapon 2 | . 1 . 1 Unidentified Prototypes . | . . . . Parts Lost 22 | . 4 . 18 Power 5 | . 1 . 4 Propulsion 6 | . 1 . 5 Utility 4 | . . . 4 Weapon 7 | . 2 . 5 Highest Loss Streak 17 | . 1 . 17 To Critical Strikes 2 | . . . 2 Average Slot Usage (%) 82 | . 78 89 84 Engine 9 | . 11 11 4 Leg 27 | . 27 33 23 Device 4 | . . 11 8 Storage 12 | . 13 11 9 Processor 6 | . 4 11 9 Protection 2 | . . . 10 Ballistic Gun 9 | . 16 . . Ballistic Cannon 1 | . . 1 8 Launcher 6 | . 3 11 7 Naked Turns . | . . . . Heaviest Build 29 | 4 26 29 29 Greatest Support 33 | 20 20 33 33 Greatest Overweight (x) 4 | . 2 . 4 Average Overweight (x) . | . . . . Largest Inventory Capacity 15 | 5 15 15 8 Average Capacity 12 | 5 14 12 7 Most Carried 8 | 2 8 8 8 Average Carried 5 | . 5 6 6 Final Capacity 15 | 5 15 8 5 Final Carried 7 | 2 6 7 2 Class Distribution -------------------- 57% | Mutant 42% | Scavenger-Mutant Dominant Class ---------------- Mutant | -10/Materials Scavenger-Mutant | -9/Materials Mutant | -8/Materials Resources | -11 -10 -9 -8 ----------- Run | Yrd Mat Mat Mat Matter Collected 759 | 251 256 134 118 Remotely . | . . . . Salvage Created 794 | 60 306 220 208 Parts 67 | 5 24 26 12 Haulers Intercepted 4 | . . 4 . Recyclers Shooed 3 | . . 2 1 Parts Field Recycled . | . . . . Retrieved Matter . | . . . . Parts Self-Destructed . | . . . . Prevented . | . . . . Kills | -11 -10 -9 -8 ------- Run | Yrd Mat Mat Mat Combat Hostiles Destroyed 20 | 1 8 3 8 Guns 9 | 1 8 . . Cannons 4 | . . . 4 AOE 7 | . . 3 4 Classes Destroyed 10 | 2 2 5 1 Worker 3 | . . 3 . Builder 4 | . . 4 . Tunneler 1 | 1 . . . Hauler 4 | . . 4 . Mechanic 1 | . . 1 . Watcher 4 | . 2 2 . Swarmer 4 | . 2 . 2 Grunt 13 | 1 6 1 5 Duelist 1 | . . . 1 Sentry 2 | . . 2 . Best Kill Streak 7 | 1 2 7 3 Combat Bots Only 3 | 1 2 1 3 Max Kills in Single Turn 4 | 1 1 4 2 Gunslinging . | . . . . Exploded 2 | . . 1 2 Melee . | . . . . Uniques/NPCs Destroyed . | . . . . Combat | -11 -10 -9 -8 -------- Run | Yrd Mat Mat Mat Hostile Shots Fired 306 | 7 69 21 209 Missed 82 | 1 19 10 52 Damage Taken 3101 | 68 643 258 2132 Core 876 | 45 179 96 556 Absorbed by Shields . | . . . . Core Remaining (%) 56 | 82 10 76 . Volleys Fired 110 | 11 42 22 35 Largest 2 | 1 2 1 2 Hottest 114 | 20 40 39 114 Shots Fired 142 | 11 70 22 39 Gun 78 | 11 67 . . Cannon 37 | . . 2 35 Launcher 27 | . 3 20 4 Special . | . . . . Kinetic 112 | 11 67 2 32 Thermal 3 | . . . 3 Explosive 27 | . 3 20 4 Electromagnetic . | . . . . Robot Hit Streak 13 | 3 13 5 7 Robot Miss Streak 6 | 3 6 3 4 Penetration Max . | . . . . Secondary Targets 2 | . 2 . . Max Gunslinging Chain 1 | . 1 . . Shots Hit Robots 81 | 6 43 12 20 Core Hits 73 | 4 19 30 20 Critical Kills . | . . . . Critical Parts Destroyed . | . . . . Critical Strikes 1 | . . . 1 Blast 1 | . . . 1 Melee Attacks . | . . . . Impact . | . . . . Slashing . | . . . . Piercing . | . . . . Sneak Attacks . | . . . . Combat Hostiles . | . . . . Follow-up Attacks . | . . . . Damage Inflicted 2863 | 63 517 1419 864 Guns 511 | 63 448 . . Cannons 442 | . . 22 420 Explosions 1848 | . 69 1393 386 Melee . | . . . . Ramming 62 | . . 4 58 Kinetic 903 | 63 448 22 370 Thermal 50 | . . . 50 Explosive 1848 | . 69 1393 386 Electromagnetic . | . . . . Impact . | . . . . Slashing . | . . . . Piercing . | . . . . Highest Corruption . | . . . . Average Corruption . | . . . . Corruption Purged . | . . . . Corruption Blocked . | . . . . Overload Shots . | . . . . Overflow Damage 41 | . . 41 . Projectiles . | . . . . Explosions 41 | . . 41 . Melee . | . . . . Knockbacks 6 | . . . 6 Impact . | . . . . Kinetic 6 | . . . 6 Secondary . | . . . . Self-Inflicted Damage 126 | . 19 105 2 Shots 4 | . 1 3 . Rammed 1 | . . . 1 Targets Rammed 20 | . . 2 18 Kicked 19 | . . 2 17 Crushed . | . . . . Highest Temperature 165 | 6 15 2 165 Average Temperature 41 | 6 6 2 50 Received Heat Transfer 1005 | 36 273 42 654 Siege Activations . | . . . . Robots Corrupted . | . . . . Combat Hostiles . | . . . . Parts Fried . | . . . . Impact Corruptions . | . . . . Robots Melted . | . . . . Combat Hostiles . | . . . . Parts Melted . | . . . . Heat Transferred 74 | . . . 74 Parts Sabotaged . | . . . . Parts Stolen . | . . . . Parts Stripped . | . . . . Power Chain Reactions . | . . . . Alert | -11 -10 -9 -8 ------- Run | Yrd Mat Mat Mat Peak Influence 349 | 25 106 349 262 Initial 63 | . 16 18 63 Average 82 | 8 47 135 142 Maximum Alert Level 1 | . . 1 1 Low Security (%) 88 | 100 100 74 71 Level 1 11 | . . 25 28 Level 2 . | . . . . Level 3 . | . . . . Level 4 . | . . . . Level 5 . | . . . . High Security . | . . . . Max Security . | . . . . Squads Dispatched 5 | . 1 . 4 Investigation . | . . . . Extermination . | . . . . Reinforcement 5 | . 1 . 4 Assault . | . . . . Garrison . | . . . . Intercept . | . . . . Searches Triggered . | . . . . Construction Impeded . | . . . . Haulers Reinforced . | . . . . Active Scanning Responses . | . . . . Cargo Convoy Interrupts . | . . . . Stealth | -11 -10 -9 -8 --------- Run | Yrd Mat Mat Mat Distress Signals 3 | . . 1 2 Communications Jammed . | . . . . Distress Signals . | . . . . Times Spotted 50 | 1 15 9 25 Peak Tracking Total 13 | 1 3 3 13 Tactical Retreats . | . . . . Traps | -11 -10 -9 -8 ------- Run | Yrd Mat Mat Mat Traps Triggered 3 | . 3 . . Indirectly . | . . . . Trap Hack Attempts . | . . . . Triggered . | . . . . Disarmed . | . . . . Reprogrammed . | . . . . Reused . | . . . . Traps Extracted . | . . . . Installed . | . . . . Triggered . | . . . . Machines | -11 -10 -9 -8 ---------- Run | Yrd Mat Mat Mat Machines Disabled 3 | . 1 1 1 Max in Single Turn 1 | . 1 1 1 Machines Repaired . | . . . . Machines Dismantled . | . . . . Machines Sabotaged . | . . . . Overloaded Fab Kills . | . . . . Hacking | -11 -10 -9 -8 --------- Run | Yrd Mat Mat Mat Machines Accessed 5 | . 2 1 2 Terminals 4 | . 2 . 2 Fabricators . | . . . . Repair Stations 1 | . . 1 . Recycling Units . | . . . . Scanalyzers . | . . . . Garrison Access . | . . . . Total Hacks 18 | . 9 3 6 Successful 11 | . 6 . 5 Failed 5 | . 2 3 . Catastrophic . | . . . . Database Lockouts 2 | . 1 . 1 Manual . | . . . . Terminals 15 | . 9 . 6 Fabricators . | . . . . Repair Stations 3 | . . 3 . Recycling Units . | . . . . Scanalyzers . | . . . . Garrison Access . | . . . . Terminal Hacks 11 | . 6 . 5 Record 7 | . 4 . 3 Locate Traps 2 | . 1 . 1 Zone Layout 2 | . 1 . 1 Fabricator Hacks . | . . . . Repair Station Hacks . | . . . . Recycling Unit Hacks . | . . . . Scanalyzer . | . . . . Garrison Access Hacks . | . . . . Unauthorized Hacks . | . . . . Terminals . | . . . . Fabricators . | . . . . Repair Stations . | . . . . Recycling Units . | . . . . Scanalyzers . | . . . . Garrison Access . | . . . . Data Cores Recovered . | . . . . Used . | . . . . Hacking Detections 3 | . 1 1 1 Full Trace Events 1 | . 1 . . Feedback Events . | . . . . Feedback Blocked . | . . . . Robot Schematics Acquired . | . . . . Robots Built . | . . . . Authchips . | . . . . Time . | . . . . Total Robot Build Rating . | . . . . Part Schematics Acquired . | . . . . Parts Built . | . . . . Authchips . | . . . . Time . | . . . . Total Part Build Rating . | . . . . Parts Repaired . | . . . . Time . | . . . . Parts Recycled . | . . . . Recycled Matter . | . . . . Retrieved Matter . | . . . . Retrieved Components . | . . . . Parts Scanalyzed . | . . . . Part Schematics Acquired . | . . . . Parts Damaged . | . . . . Bothacking | -11 -10 -9 -8 ------------ Run | Yrd Mat Mat Mat Used RIF Installer . | . . . . Robots Hacked . | . . . . Non-combat . | . . . . Combat . | . . . . Robot Hacks Applied . | . . . . Relay Couplers Released . | . . . . Fabnet Peak Effective % . | . . . . Robots Rewired . | . . . . Allies Hacked . | . . . . Hacks Repelled . | . . . . Allies | -11 -10 -9 -8 -------- Run | Yrd Mat Mat Mat Total Allies . | . . . . Largest Group . | . . . . Highest-Rated Group . | . . . . Highest-Rated Ally . | . . . . Total Orders . | . . . . Ally Attacks . | . . . . Total Damage . | . . . . Kills . | . . . . Allies Corrupted . | . . . . Allies Melted . | . . . . Intel | -11 -10 -9 -8 ------- Run | Yrd Mat Mat Mat Robot Analysis Total . | . . . . Derelict Logs Recovered . | . . . . Drone Launches . | . . . . Drone Recoveries . | . . . . Exploration | -11 -10 -9 -8 ------------- Run | Yrd Mat Mat Mat Turns Passed 2084 | 164 1039 486 395 Spaces Moved 1111 | 111 456 321 223 Core 37 | 20 . . 17 Treads . | . . . . Legs 1074 | 91 456 321 206 Wheels . | . . . . Hover . | . . . . Flight . | . . . . Fastest Speed 50 | 50 120 120 50 Average Speed 147 | 107 188 120 123 Slowest Speed 260 | 120 260 120 250 Overloaded Moves . | . . . . Propulsion Burnouts . | . . . . Robots Hopped . | . . . . Cave-ins Triggered . | . . . . Exploration Rate (%) 36 | 8 79 33 26 Regions Visited 3 Branch Regions . Pre-discovered Areas . | . . . . Known Exits Taken 2 | . 1 1 . Unknown Exits Taken 1 | 1 . . . Scrap Searched . | . . . . Spaces Dug . | . . . . Terrain Destroyed 156 | . 12 122 22 Melee . | . . . . Projectile 6 | . . 1 5 AOE 150 | . 12 121 17 Terrain Rammed . | . . . . Walls Destroyed . | . . . . Machines Disabled . | . . . . Actions | -11 -10 -9 -8 --------- Run | Yrd Mat Mat Mat Total 1405 | 145 565 398 297 Wait 102 | 18 44 38 2 Move 1108 | 110 455 320 223 Hop . | . . . . Pick Up 14 | 2 7 4 1 Fast Attach 16 | 4 5 1 6 Attach 12 | . 4 2 6 Detach . | . . . . Swap 16 | . 6 6 4 Drop 7 | . 2 3 2 Fire 110 | 11 42 22 35 Melee . | . . . . Ram 1 | . . . 1 Kick 19 | . . 2 17 Crush . | . . . . Escape Stasis . | . . . . Rewire . | . . . . Trap . | . . . . Miscellaneous . | . . . . Route ------- -11/Scrapyard -10/Materials (discovered 2 exits: *Mat x2) -9/Materials (discovered 2 exits: *Mat / *Min) -8/Materials History --------- Turn | Location | Event 2 | -11/Scrapyard | Met Revision 17 63 | -11/Scrapyard | Discovered new exit (range 8) 165 | -11/Scrapyard | Entered Materials 243 | -10/Materials | Discovered new exit (range 17) 314 | -10/Materials | Build established: Mutant 673 | -10/Materials | Core integrity fell below 50% 863 | -10/Materials | Core integrity fell below 20% 1151 | -10/Materials | Discovered new exit (range 6) 1162 | -10/Materials | Central database locked down 1202 | -10/Materials | Identified exit to Materials 1204 | -10/Materials | Entered another Materials area 1204 | -9/Materials | Evolved 2 slots: Propulsion x1, Utility x1 1378 | -9/Materials | Build established: Scavenger-Mutant 1420 | -9/Materials | Discovered new exit (range 8) 1461 | -9/Materials | Identified exit to Mines 1683 | -9/Materials | Discovered new exit (range 5) 1689 | -9/Materials | Identified exit to Materials 1690 | -9/Materials | Entered another Materials area 1690 | -8/Materials | Evolved 2 slots: Utility x2 1949 | -8/Materials | Central database locked down 2062 | -8/Materials | Core integrity fell below 50% 2078 | -8/Materials | Core integrity fell below 20% 2085 | -8/Materials | Destroyed by H-55 Commando with Assault Rifle Last Messages --------------- U-05 Engineer lays Concrete. R-06 Scavenger collects Lgt. Assault Rifle. U-05 Engineer lays Concrete. Slug penetrates S-10 Pest. Nuclear Core destroyed. U-05 Engineer builds a Wall. Mni. Grenade Launcher destroyed. U-05 Engineer builds a Wall. Aluminum Leg destroyed. U-05 Engineer builds a Wall. S-10 Pest destroyed. Critical hit (Destroy). Lgt. Nuclear Core destroyed. K-01 Serf collects debris. Sml. Storage Unit destroyed. R-06 Scavenger collects Flight Unit. U-05 Engineer builds a Wall. Slammed into Y-45 Defender. K-01 Serf collects debris. Penetrated by Slug. Map ----- +----------------------------------------------------+ | ???????????????????# #??# % % ####? | | ???????????????????# #??# T ## | | ???????????????????# #??# ## ## | | ???????????????????# #?####+############ ## ## | | ???????????????????# #?# ?? #????######+####!#? | | ???????????????????# #?# #????# # #? | | ???????????????????#%#?# """ #????# "Y" # #? | | ???????????????????# #?? """ ###??# """ # #? | | ???????????????????# #?? [" ##?# # #? | | ???????????????????# #?##""##"""""#######+##+## #? | | ???????????????????# #?# "" + #? | | ?????????########### #?# # [#? | | ?????????# !!! # #?# # # #? | | ?????????# !!! [ # #?# # + ^^#? | | ?????????# !! # ### # #######^#? | | ?????????# """ # # #?????# #? | | ?????????#""" """ + # # "######?????# #? | | ?????????#"R "" # #% u# ### #??????# #? | | ?????????#""" # / Y !!! #??????# #? | | ?????????# ! #a ######/ !!! #??????? #? | | ?????????###### #### ## % =Y !!! #??#???? ? | | ??????????????###?##k ## "" r= # ???" ? | | ???????????????####g # """g == ! + ?????? ? | | ?????????????? # "" g g ] #??????? ? | | ?????????????? Y ghgk #????????????? ? | | ?????????????? #@ r #??????????????? | | ??????????????##### # #??????????????? | | ??????????????????### ### #??????????????? | | ????????????????????#+#?###########??????????????? | | ?????????????????????????????????????????????????? | | ?????????????????????????????????????????????????? | | ?????????????????????????????????????????????????? | | ??????????H??????????????????????????????????????? | | ?????????????????????????????????????????????????? | | ?????????????????????????????????????????????????? | | ?????????????????????????????????????????????????? | | ?????????????????????????????????????????????????? | | ?????????????????????????????????????????????????? | | ?????????????????????????????????????????????????? | | ?????????????????????????????????????????????????? | | ?????????????????????????????????????????????????? | | ?????????????????????????????????????????????????? | | ?????????????????????????????????????????????????? | | ?????????????????????????????????????????????????? | | ?????????????????????????????????????????????????? | | ?????????????????????????????????????????????????? | | ?????????????????????????????????????????????????? | | ?????????????????????????????????????????????????? | | ?????????????????????????????????????????????????? | | ?????????????????????????????????????????????????? | +----------------------------------------------------+ Best States ------------- Heat Dissipation 31 Energy Generation 14 Energy Capacity 265 Matter Stores 300 Matter Capacity 300 Sight Range 16 Robot Scan Range 15 Terrain Scan Density 10 Armor Coverage 375 Evasion (%) 55 Item Schematics ----------------- None Robot Schematics ------------------ None Fabricated ------------ Nothing Alien Tech Used ----------------- None Achievements -------------- Crack Shot Loot Pinata Oops Storm Trooper Uninvited Guest Challenges ------------ None Game ------ Seed SlugScrapFalx Manual? 0 Play Time 00:32:06 Cumulative 0.5 hours Start 2024.04.01 @ 15:21:19 End 2024.04.01 @ 15:53:47 Sessions 1 Manual Loads 0 Difficulty Rogue Special Mode None Game No. 2 Rogue 2 Adventurer 0 Explorer 0 Win Type - Total 0 Types 0/0/0/0/0/0/0/0/0 Lore% 1 Gallery% 2 Achievement% 2 Wizard Run 0 Options --------- Layout 1 ASCII 0 Keyboard 0 Movement Mouse Keybinds 0 Fullscreen 1 Font 16/SmallcapsGlow Map View 55x38 Zoom Use 0% Tactical HUD 0 Map Filters NONE Filters NONE Steam 1 RUN: f331f734-0664-49e2-af42-8509c8896632